bitfinex-derivatives/quotes_ETHF0:USTF0_20241020
["timestamp","ask_amount","ask_price","bid_price","bid_amount"]
[1729418775331,0.3772,2651.2,2651.1,0.54899623]
[1729418775926,0.3772,2651.2,2651.1,0.92621623]
[1729418776527,0.3772,2651.2,2651.1,0.54899623]
[1729418777532,0.3772,2651.2,2651.1,0.92621623]
[1729418778729,0.3772,2651.2,2651.1,2.74731021]
[1729418783840,0.3772,2651.2,2651.1,2.74731396]
[1729418785039,0.3772,2651.2,2651.1,2.21999773]
[1729418785240,0.8038,2651.2,2651.1,2.21999773]
[1729418787338,0.8038,2651.2,2651.1,2.59721773]
[1729418788932,0.8038,2651.2,2651.1,2.59720911]
[1729418791342,0.8038,2651.2,2651.1,2.21998911]
[1729418792838,0.8038,2651.2,2651.1,2.59720911]
[1729418793828,0.8038,2651.2,2651.1,0.77612]
[1729418798950,0.4266,2651.2,2651.1,0.77612]
[1729418799249,0.8038,2651.2,2651.1,0.77612]
[1729418800851,0.8038,2651.2,2651.1,2.5973842]
[1729418805156,0.8038,2651.2,2651.1,2.5974589]
[1729418806956,0.8038,2651.2,2651.1,2.2202389]
[1729418807144,0.4266,2651.2,2651.1,2.5974589]
[1729418807348,0.8038,2651.2,2651.1,2.5974589]
[1729418808956,0.8038,2651.2,2651.1,4.07898524]
[1729418812554,0.4266,2651.2,2651.1,4.07898524]
[1729418813768,0.8038,2651.2,2651.1,4.07898524]
[1729418814154,0.8038,2651.2,2651.1,4.07933733]
[1729418814567,0.4266,2651.2,2651.1,4.07933733]
[1729418814766,0.8038,2651.2,2651.1,4.07933733]
[1729418815968,0.8038,2651.2,2651.1,0.77612]
[1729418820467,0.4266,2651.2,2651.1,0.77612]
[1729418821664,0.8038,2651.2,2651.1,0.77612]
[1729418821871,0.4266,2651.2,2651.1,0.77612]
[1729418822673,0.80209,2651.3,2651.2,0.3772]
[1729418823074,0.80209,2651.3,2651.2,0.3971]
[1729418823872,0.80209,2651.3,2651.2,2.21840028]
[1729418824779,0.80209,2651.3,2651.2,3.69981476]
[1729418825886,0.80209,2651.3,2651.2,3.69978684]
[1729418831183,0.80209,2651.3,2651.2,0.3971]
[1729418839098,0.80209,2651.3,2651.2,3.69923105]
[1729418842501,0.80209,2651.3,2651.2,3.69921964]
[1729418846000,0.80209,2651.3,2651.2,0.3971]
[1729418849899,0.80209,2651.3,2651.2,0.27314187]
[1729418854109,0.80209,2651.3,2651.2,3.57527885]
[1729418855010,0.37718,2651.4,2651.2,3.57527885]
[1729418855208,0.37718,2651.4,2651.3,2.80806759]
[1729418855822,0.37718,2651.4,2651.3,1.82075042]
[1729418856125,1.62747,2651.5,2651.3,3.18522625]
[1729418856325,1.62747,2651.5,2651.3,1.36447583]
[1729418856525,1.62747,2651.5,2651.4,1.38948583]
[1729418856721,1.20536,2651.5,2651.4,1.38948583]
[1729418857614,1.20536,2651.5,2651.4,3.20998751]
[1729418857820,1.20536,2651.5,2651.4,3.62958751]
[1729418858222,1.20536,2651.5,2651.4,1.80908583]
[1729418858417,1.20536,2651.5,2651.4,3.62949139]
[1729418859122,1.20536,2651.5,2651.4,1.40688583]
[1729418861013,1.20536,2651.5,2651.4,0.4196]
[1729418862022,0.4185,2651.5,2651.4,0.4196]
[1729418862224,0.4185,2651.5,2651.4,0.79677]
[1729418862422,0.79566,2651.5,2651.4,0.4196]
[1729418865024,0.79566,2651.5,2651.4,0.28724212]
[1729418875229,0.37715,2651.6,2651.4,0.66441212]
[1729418875437,0.37716,2651.5,2651.4,0.28724212]
[1729418875937,0.37716,2651.6,2651.4,1.65169795]
[1729418877231,0.37716,2651.6,2651.4,1.27452795]
[1729418877536,0.37716,2651.6,2651.4,1.65169795]
[1729418878032,0.37716,2651.6,2651.4,1.27452795]
[1729418878234,0.4079,2651.7,2651.4,1.27452795]
[1729418878235,0.37716,2651.5,2651.4,1.27452795]
[1729418880143,0.37716,2651.5,2651.3,1.25332089]
[1729418880341,0.401,2651.4,2651.3,1.25332089]
[1729418880538,0.401,2651.4,2651.3,3.07286651]
[1729418881140,0.401,2651.4,2651.3,3.07279651]
[1729418882237,0.401,2651.4,2651.3,0.98728583]
[1729418882238,0.77817,2651.4,2651.3,0.98728583]
[1729418882443,0.77817,2651.4,2651.2,0.98728583]
[1729418882444,0.37719,2651.3,2651.2,0.98728583]
[1729418882638,0.76609,2651.3,2651.2,0.98728583]
[1729418883342,0.37722,2651.1,2651.0,3.2078]
[1729418886045,0.37722,2651.1,2650.9,0.37724]
[1729418886354,0.37722,2651.1,2650.9,3.58504]
[1729418886641,0.37722,2651.1,2650.9,3.2078]
[1729418886849,0.37722,2651.1,2651.0,0.37723]
[1729418887049,0.3889,2651.3,2651.0,0.37723]
[1729418887346,0.37721,2651.2,2651.0,0.37723]
[1729418888545,0.77391,2651.2,2651.0,0.37723]
[1729418889245,0.77391,2651.2,2651.0,0.77713]
[1729418889542,0.37722,2651.1,2651.0,0.77713]
[1729418890740,0.80582,2651.1,2651.0,0.77713]
[1729418891334,0.80582,2651.1,2651.0,8.21150641]
[1729418891838,0.4286,2651.1,2651.0,8.21150641]
[1729418892032,0.80582,2651.1,2651.0,8.21150641]
[1729418892246,0.80582,2651.1,2651.0,6.23654468]
[1729418894844,0.4286,2651.1,2651.0,6.23654468]
[1729418895346,0.80582,2651.1,2651.0,6.23654468]
[1729418895548,0.80582,2651.1,2651.0,8.21033943]
[1729418895847,0.80582,2651.1,2651.0,7.83310943]
[1729418896048,0.80582,2651.1,2651.0,8.21033943]
[1729418896246,0.80582,2651.1,2651.0,4.19349964]
[1729418896448,0.80582,2651.1,2651.0,4.57072964]
[1729418896649,0.80582,2651.1,2651.0,4.19349964]
[1729418897048,0.80582,2651.1,2651.0,4.57072964]
[1729418897753,0.4286,2651.1,2651.0,4.57072964]
[1729418897947,0.80582,2651.1,2651.0,8.2106971]
[1729418898147,0.80582,2651.1,2651.0,4.57072964]
[1729418898843,0.4286,2651.1,2651.0,4.57072964]
[1729418899950,0.4286,2651.1,2651.0,8.21071611]
[1729418900461,3.2078,2651.8,2651.0,12.83949136]
[1729418900640,3.2078,2651.8,2651.5,0.98672034]
[1729418900846,3.2078,2651.8,2651.6,1.40152034]
[1729418901148,3.58492,2651.8,2651.6,1.40152034]
[1729418901549,0.37713,2651.7,2651.6,1.40152034]
[1729418906351,0.37713,2651.7,2651.6,0.4148]
[1729418919967,0.37714,2651.6,2651.4,1.79148034]
[1729418920165,0.37714,2651.6,2651.4,2.19268034]
[1729418920166,0.80364,2651.6,2651.4,2.19268034]
[1729418921373,0.80364,2651.6,2651.4,1.20596]
[1729418925565,0.4265,2651.6,2651.4,1.20596]
[1729418926673,0.80365,2651.6,2651.4,1.20596]
[1729418928068,0.77506,2651.5,2651.4,1.20597]
[1729418928575,0.77506,2651.5,2651.4,3.02360373]
[1729418928761,0.3979,2651.5,2651.4,3.02360373]
[1729418929168,0.3979,2651.5,2651.4,4.50368424]
[1729418929463,0.3979,2651.5,2651.4,4.12651424]
[1729418929671,0.77506,2651.5,2651.4,4.50368424]
[1729418930078,0.77506,2651.5,2651.4,3.02360373]
[1729418930375,0.77506,2651.5,2651.4,4.50368424]
[1729418933668,0.77506,2651.5,2651.4,3.02360373]
[1729418934773,0.77506,2651.5,2651.4,4.50368424]
[1729418935172,0.77506,2651.5,2651.4,4.12651424]
[1729418935365,0.77506,2651.5,2651.4,4.50368424]
[1729418935876,0.77506,2651.5,2651.4,4.12651424]
[1729418936175,0.77506,2651.5,2651.4,4.1268133]
[1729418936574,0.77506,2651.5,2651.4,0.8288]
[1729418936772,0.77506,2651.5,2651.4,1.20597]
[1729418938373,0.77506,2651.5,2651.4,0.8288]
[1729418938575,0.77506,2651.5,2651.4,0.4012]
[1729418938776,1.20296,2651.5,2651.4,0.4012]
[1729418940267,1.20296,2651.5,2651.4,0.77837]
[1729418943579,1.20296,2651.5,2651.4,8.32684587]
[1729418944581,1.20296,2651.5,2651.4,8.32777718]
[1729418944787,1.20296,2651.5,2651.4,7.92657718]
[1729418946075,1.20296,2651.5,2651.4,5.45787501]
[1729418947579,1.20296,2651.5,2651.4,5.76450651]
[1729418947782,1.20296,2651.5,2651.4,5.88244131]
[1729418949077,1.20296,2651.5,2651.4,5.88244185]
[1729418951685,1.20296,2651.5,2651.4,3.41797484]
[1729418951882,1.20296,2651.5,2651.4,3.53591056]
[1729418952080,1.20296,2651.5,2651.4,3.41797484]
[1729418952774,1.20296,2651.5,2651.4,3.30003965]
[1729418952974,1.20296,2651.5,2651.4,3.41797577]
[1729418954287,1.20296,2651.5,2651.4,3.41921237]
[1729418954683,1.20296,2651.5,2651.4,3.30127625]
[1729418958590,1.20296,2651.5,2651.4,7.92941443]
[1729418959384,1.20296,2651.5,2651.4,7.92935238]
[1729418960588,0.63686257,2651.5,2651.4,7.92935238]
[1729418962793,0.63686257,2651.5,2651.4,8.04729228]
[1729418963788,1.04836257,2651.5,2651.4,8.04729228]
[1729418966887,4.81956257,2651.5,2651.4,8.04729228]
[1729418967391,4.81956257,2651.5,2651.4,5.57937898]
[1729418967578,4.81956257,2651.5,2651.4,5.46143908]
[1729418967785,4.81956257,2651.5,2651.4,5.57938025]
[1729418968185,4.81956257,2651.5,2651.4,5.5793803]
[1729418969393,4.81956257,2651.5,2651.4,5.57167993]
[1729418969784,4.81956257,2651.5,2651.4,5.45373871]
[1729418972089,1.04836257,2651.5,2651.4,5.45373871]
[1729418972782,1.04836257,2651.5,2651.4,6.26283871]
[1729418973687,1.04836257,2651.5,2651.4,1.79608481]
[1729418977902,1.04836257,2651.5,2651.4,1.91402438]
[1729418978104,0.63686257,2651.5,2651.4,1.91402438]
[1729418978692,0.63686257,2651.5,2651.4,1.79608481]
[1729418978893,0.63686257,2651.5,2651.4,1.91402434]
[1729418981597,0.63686257,2651.5,2651.4,6.38011077]
[1729418984504,0.63686257,2651.5,2651.4,6.38034078]
[1729418986008,0.20896257,2651.5,2651.4,6.38034078]
[1729418986208,0.20896257,2651.5,2651.4,6.77794078]
[1729418988907,0.20896257,2651.5,2651.4,2.31163623]
[1729418989906,0.20896257,2651.5,2651.4,2.31163608]
[1729418992811,0.20896257,2651.5,2651.4,2.1936967]
[1729418996310,0.20896257,2651.5,2651.4,4.01153548]
[1729418996517,0.20896257,2651.5,2651.4,3.02453878]
[1729418996718,0.20896257,2651.5,2651.4,9.1281185]
[1729418998515,3.5977,2651.7,2651.4,9.5052885]
[1729418998807,3.5977,2651.7,2651.4,3.6746133]
[1729418998808,0.37716,2651.5,2651.4,3.6746133]
[1729418999017,0.37716,2651.5,2651.4,9.12782641]
[1729418999405,0.37716,2651.5,2651.4,9.12785202]
[1729418999816,0.37716,2651.5,2651.4,9.24578538]
[1729419000217,0.37716,2651.5,2651.4,9.36371867]
[1729419000620,0.37716,2651.5,2651.4,9.12785202]
[1729419000816,0.37716,2651.5,2651.4,9.36371627]
[1729419002709,0.37716,2651.5,2651.4,9.36338618]
[1729419002910,0.37716,2651.5,2651.4,9.36338781]
[1729419003820,0.37716,2651.5,2651.4,4.74048505]
[1729419004419,0.37716,2651.5,2651.4,4.62255135]
[1729419007127,0.37716,2651.5,2651.4,4.62255298]
[1729419007727,0.37716,2651.5,2651.4,4.62247499]
[1729419007921,0.37716,2651.5,2651.4,4.50454118]
[1729419011733,0.37716,2651.5,2651.4,9.12721662]
[1729419012843,0.37716,2651.5,2651.4,9.12709173]
[1729419015042,0.37716,2651.5,2651.4,9.24502626]
[1729419016043,0.37716,2651.5,2651.4,8.03832626]
[1729419017544,0.37716,2651.5,2651.4,8.0385588]
[1729419019346,0.37716,2651.5,2651.4,7.92062427]
[1729419019645,0.37716,2651.5,2651.4,8.03856147]
[1729419020546,3.5977,2651.7,2651.4,8.03856147]
[1729419020749,0.37714,2651.6,2651.5,7.42650015]
[1729419022656,0.37714,2651.6,2651.5,7.42202507]
[1729419025750,0.37714,2651.6,2651.5,5.44823589]
[1729419025957,0.37714,2651.6,2651.5,5.85353589]
[1729419026145,0.37714,2651.7,2651.5,9.66103218]
[1729419026340,0.37714,2651.7,2651.6,8.03407979]
[1729419026846,0.37714,2651.7,2651.6,1.10462894]
[1729419028453,0.37714,2651.7,2651.6,0.98669834]
[1729419033958,0.37714,2651.7,2651.6,5.44554637]
[1729419041960,0.37714,2651.6,2651.5,2.61344976]
[1729419043569,0.37714,2651.6,2651.5,1.62695]
[1729419043960,0.37714,2651.6,2651.5,2.61344976]
[1729419045867,0.37714,2651.6,2651.5,1.2498]
[1729419052277,0.37714,2651.6,2651.5,1.36772863]
[1729419053769,0.37714,2651.6,2651.5,9.28110073]
[1729419055381,0.37714,2651.6,2651.5,9.28110094]
[1729419055782,0.37714,2651.6,2651.5,9.1631721]
[1729419055985,0.37714,2651.6,2651.5,9.28110102]
[1729419056478,0.77784,2651.6,2651.5,9.28110102]
[1729419057280,0.77784,2651.6,2651.5,9.65826102]
[1729419057675,0.77784,2651.6,2651.5,9.28110102]
[1729419058583,0.77784,2651.6,2651.5,3.83564222]
[1729419058881,0.77784,2651.6,2651.5,1.36772892]
[1729419059276,0.77784,2651.6,2651.5,1.2498]
[1729419059477,0.77784,2651.6,2651.5,1.36772962]
[1729419060279,0.77784,2651.6,2651.5,1.2498]
[1729419060487,0.37716,2651.5,2651.4,0.98644407]
[1729419061686,0.37716,2651.5,2651.4,1.40664407]
[1729419062078,0.37716,2651.5,2651.4,1.78381407]
[1729419062879,0.37716,2651.5,2651.4,3.59923489]
[1729419063081,0.37716,2651.5,2651.4,3.22206489]
[1729419063674,0.37716,2651.5,2651.4,3.22213909]
[1729419063879,0.37716,2651.5,2651.4,0.98644407]
[1729419065686,0.37716,2651.5,2651.4,5.44724206]
[1729419067286,0.37716,2651.5,2651.4,5.56517427]
[1729419067683,0.37716,2651.5,2651.4,5.68310688]
[1729419068394,7.35616,2651.5,2651.4,3.79081819]
[1729419068689,7.35616,2651.5,2651.4,3.29688379]
[1729419070295,0.37719,2651.3,2651.2,1.97435476]
[1729419070496,0.37723,2651.0,2650.9,2.46794345]
[1729419070681,0.37723,2651.0,2650.9,3.63125989]
[1729419070887,3.2078,2651.1,2650.7,2.46794345]
[1729419070888,0.37726,2650.8,2650.7,2.46794345]
[1729419071082,0.37726,2650.8,2650.2,11.30581438]
[1729419071083,0.37729,2650.6,2650.3,0.8241]
[1729419071287,0.3773,2650.5,2650.4,6.05599839]
[1729419071488,0.37733,2650.3,2650.2,3.2078]
[1729419071809,0.37733,2650.3,2650.2,6.79352331]
[1729419072294,0.37733,2650.3,2650.2,3.2078]
[1729419072594,0.37733,2650.3,2650.2,4.19352221]
[1729419072894,0.37733,2650.3,2650.2,3.2078]
[1729419076089,0.37737,2650.1,2650.0,3.2078]
[1729419076698,0.37737,2650.1,2649.9,0.4104]
[1729419077389,3.6207,2650.4,2649.9,0.78779]
[1729419077390,0.37735,2650.2,2649.9,0.78779]
[1729419077987,0.4129,2650.4,2649.9,0.4104]
[1729419078182,0.37735,2650.2,2649.9,0.4104]
[1729419078593,0.37735,2650.2,2649.9,0.78778]
[1729419080797,0.4129,2650.4,2649.9,0.78778]
[1729419081207,0.37735,2650.2,2649.9,0.78778]
[1729419082893,3.2078,2650.6,2649.9,0.4104]
[1729419083096,3.2078,2650.6,2650.3,0.37733]
[1729419083298,3.58509,2650.6,2650.4,1.2201]
[1729419083498,0.37729,2650.6,2650.4,1.59741]
[1729419083698,0.37728,2650.7,2650.5,0.3773]
[1729419084102,0.37728,2650.7,2650.4,1.59741]
[1729419084604,0.4195,2650.8,2650.4,1.2201]
[1729419084897,0.37726,2650.8,2650.5,0.37729]
[1729419087898,0.37726,2650.8,2650.4,1.2201]
[1729419088201,0.37726,2650.8,2650.6,0.37729]
[1729419088802,0.37725,2650.9,2650.6,0.37729]
[1729419089601,0.37726,2650.8,2650.6,0.37729]
[1729419089809,0.37725,2650.9,2650.6,0.37729]
[1729419090101,3.58504,2651.0,2650.7,0.37726]
[1729419090301,3.58504,2651.0,2650.8,0.4284]
[1729419090603,3.58504,2651.0,2650.9,0.8476]
[1729419094108,0.37722,2651.1,2650.9,1.22484]
[1729419094306,0.4195,2651.2,2650.9,0.8476]
[1729419094512,0.37722,2651.1,2650.9,1.22484]
[1729419098713,0.4195,2651.2,2650.9,0.8476]
[1729419098910,0.37723,2651.0,2650.9,0.8476]
[1729419099310,0.37722,2651.1,2650.9,1.22484]
[1729419100313,0.37723,2651.0,2650.9,0.8476]
[1729419100612,0.37723,2651.0,2650.8,0.80565]
[1729419101419,0.4195,2651.2,2650.8,0.4284]
[1729419101617,0.37724,2650.9,2650.8,0.4284]
[1729419102116,0.37726,2650.8,2650.7,0.8153]
[1729419106414,0.8408,2651.2,2650.7,0.8153]
[1729419106611,0.37725,2650.9,2650.7,1.19257]
[1729419106822,0.4188,2650.8,2650.7,1.19257]
[1729419107518,0.79606,2650.8,2650.7,0.8153]
[1729419117922,0.79606,2650.8,2650.7,2.60470222]
[1729419118334,0.79606,2650.8,2650.7,3.59022868]
[1729419118536,0.79606,2650.8,2650.7,2.18300222]
[1729419118834,0.79606,2650.8,2650.7,1.78940222]
[1729419119139,0.79606,2650.8,2650.7,2.77490267]
[1729419119436,0.79606,2650.8,2650.7,2.77503577]
[1729419119624,0.79606,2650.8,2650.7,1.78940222]
[1729419119830,0.79606,2650.8,2650.7,2.77502939]
[1729419120230,0.79606,2650.8,2650.7,2.77502551]
[1729419120534,0.79606,2650.8,2650.7,1.78940222]
[1729419121039,0.79606,2650.8,2650.7,2.18796334]
[1729419125438,0.79606,2650.8,2650.7,2.18927164]
[1729419126046,0.79606,2650.8,2650.7,0.398]
[1729419129338,0.79606,2650.8,2650.7,1.38467397]
[1729419132949,0.79606,2650.8,2650.7,5.78131275]
[1729419135752,0.79606,2650.8,2650.7,5.38331275]
[1729419139354,0.79606,2650.8,2650.7,5.80761275]
[1729419140248,0.79606,2650.8,2650.7,5.80810979]
[1729419140642,0.22983867,2650.8,2650.7,5.80810979]
[1729419144344,0.22983867,2650.8,2650.7,8.27595655]
[1729419144941,0.22983867,2650.8,2650.7,2.89214676]
[1729419145154,0.22983867,2650.8,2650.7,8.27035201]
[1729419146546,0.22983867,2650.8,2650.7,8.38831562]
[1729419146740,0.22983867,2650.8,2650.7,8.27035201]
[1729419146945,0.22983867,2650.8,2650.7,8.38831518]
[1729419148144,0.22983867,2650.8,2650.7,2.33499825]
[1729419149254,0.22983867,2650.8,2650.7,3.32402589]
[1729419149658,0.22983867,2650.8,2650.7,2.33499891]
[1729419149956,0.22983867,2650.8,2650.7,2.21703508]
[1729419150156,0.22983867,2650.8,2650.7,2.21790192]
[1729419150366,0.22983867,2650.8,2650.7,3.20693509]
[1729419151945,0.22983867,2650.8,2650.7,2.78263509]
[1729419152147,3.6131,2651.1,2650.6,0.98903317]
[1729419152356,0.79817,2650.7,2650.6,0.98903317]
[1729419156063,0.79817,2650.7,2650.6,5.37964164]
[1729419157557,0.79817,2650.7,2650.6,5.78214164]
[1729419157558,0.37727,2650.7,2650.6,5.78214164]
[1729419157748,0.37727,2650.7,2650.6,6.19414164]
[1729419163151,0.37727,2650.7,2650.6,1.80317172]
[1729419168069,0.37727,2650.7,2650.6,0.4025]
[1729419168253,0.78687,2650.7,2650.6,0.4025]
[1729419171268,0.78687,2650.7,2650.6,8.24751836]
[1729419172365,0.78687,2650.7,2650.6,8.24737697]
[1729419174358,0.37727,2650.7,2650.6,8.24737697]
[1729419175069,0.37727,2650.7,2650.6,8.24724415]
[1729419178167,0.37727,2650.7,2650.6,3.67732092]
[1729419179471,0.37727,2650.7,2650.6,2.19479913]
[1729419179963,0.37727,2650.7,2650.6,2.19487941]
[1729419180266,0.37727,2650.7,2650.6,2.31284971]
[1729419183472,0.37727,2650.7,2650.6,2.3128364]
[1729419184074,0.37727,2650.7,2650.6,2.31283651]
[1729419184371,0.37727,2650.7,2650.6,3.7953583]
[1729419186168,0.37727,2650.7,2650.6,5.89775486]
[1729419188169,0.37727,2650.7,2650.6,5.77978445]
[1729419188365,0.37727,2650.7,2650.6,5.78007023]
[1729419189181,0.37727,2650.7,2650.6,8.24791699]
[1729419189371,0.37727,2650.7,2650.6,5.78007023]
[1729419189668,0.37727,2650.7,2650.6,8.24791699]
[1729419193276,0.37727,2650.7,2650.6,8.24876365]
[1729419195269,0.37727,2650.7,2650.6,8.36673252]
[1729419198375,0.37727,2650.7,2650.6,8.36834125]
[1729419199277,0.37727,2650.7,2650.6,8.25037238]
[1729419199574,0.37727,2650.7,2650.6,8.36833932]
[1729419200480,0.37727,2650.7,2650.6,4.40953405]
[1729419200675,0.37727,2650.7,2650.6,4.78682405]
[1729419200876,0.37726,2650.8,2650.6,4.78682405]
[1729419201075,0.37726,2650.8,2650.7,3.78595559]
[1729419201384,0.37726,2650.8,2650.7,4.19045559]
[1729419202270,0.37726,2650.8,2650.7,4.3791995]
[1729419202672,0.37726,2650.8,2650.7,4.49716455]
[1729419202875,0.37726,2650.8,2650.7,4.19045371]
[1729419203274,0.37726,2650.8,2650.7,4.49716288]
[1729419203672,0.37726,2650.8,2650.7,4.49716287]
[1729419204286,0.37726,2650.8,2650.7,4.49716309]
[1729419206267,0.37726,2650.8,2650.7,4.87443309]
[1729419206768,0.37726,2650.8,2650.7,4.49716248]
[1729419208376,0.4298,2650.9,2650.7,6.59911774]
[1729419208579,0.4298,2650.9,2650.8,7.96771483]
[1729419208970,0.80704,2650.9,2650.8,7.96771483]
[1729419209573,0.80704,2650.9,2650.8,7.84974988]
[1729419213377,0.80704,2650.9,2650.8,7.84381618]
[1729419215476,0.80704,2650.9,2650.8,1.79087007]
[1729419218083,0.80704,2650.9,2650.8,2.77924243]
[1729419218276,0.80704,2650.9,2650.8,2.77918777]
[1729419222170,0.80704,2650.9,2650.8,1.79081541]
[1729419222782,0.80704,2650.9,2650.8,2.7791933]
[1729419223577,0.80704,2650.9,2650.8,5.37246667]
[1729419223973,0.37724,2650.9,2650.8,5.37246667]
[1729419225780,0.37724,2650.9,2650.8,7.961635]
[1729419228081,0.37724,2650.9,2650.8,2.47120597]
[1729419228288,0.37724,2650.9,2650.8,7.96145555]
[1729419232090,0.37724,2650.9,2650.8,7.96145566]
[1729419232485,0.37724,2650.9,2650.8,7.96143398]
[1729419233083,0.37724,2650.9,2650.8,2.58916795]
[1729419233284,0.37724,2650.9,2650.8,7.96149485]
[1729419235093,0.37724,2650.9,2650.8,8.07945608]
[1729419235287,0.37724,2650.9,2650.8,7.96149485]
[1729419235686,0.37724,2650.9,2650.8,7.96149447]
[1729419236091,0.37724,2650.9,2650.8,8.07945524]
[1729419238492,0.37724,2650.9,2650.8,8.07945557]
[1729419238692,0.37724,2650.9,2650.8,3.50906172]
[1729419239397,0.37724,2650.9,2650.8,3.39110062]
[1729419239593,0.37724,2650.9,2650.8,3.39110046]
[1729419239797,0.37724,2650.9,2650.8,3.50906115]
[1729419239999,0.37724,2650.9,2650.8,3.39110046]
[1729419240194,0.37724,2650.9,2650.8,3.50905948]
[1729419240696,0.37724,2650.9,2650.8,2.02669609]
[1729419240998,0.37724,2650.9,2650.8,1.79077563]
[1729419241403,0.37724,2650.9,2650.7,6.35744452]
[1729419241595,0.4202,2651.2,2650.8,1.79057769]
[1729419241803,0.37724,2651.0,2650.9,3.67141322]
[1729419242193,0.4253,2651.3,2650.9,3.67141322]
[1729419242393,0.4253,2651.3,2651.1,0.98811415]
[1729419242394,0.37719,2651.3,2651.1,0.98811415]
[1729419242594,0.3772,2651.2,2651.1,1.48217123]
[1729419242791,0.3772,2651.2,2651.1,3.69328122]
[1729419245500,0.3772,2651.2,2651.1,3.19836347]
[1729419245689,0.3772,2651.2,2651.1,7.76348891]
[1729419246205,0.3772,2651.2,2651.1,5.97367892]
[1729419246404,0.3772,2651.2,2651.1,7.76265203]
[1729419249906,0.77868,2651.4,2651.2,0.3772]
[1729419250114,0.77868,2651.4,2651.3,2.61264257]
[1729419251209,0.77868,2651.4,2651.3,2.61149243]
[1729419251410,0.37718,2651.4,2651.3,2.61149243]
[1729419251608,0.37718,2651.4,2651.3,4.0912514]
[1729419252811,4.01027,2651.5,2651.3,4.4684314]
[1729419253001,0.80247,2651.5,2651.4,3.2675514]
[1729419253600,0.80247,2651.5,2651.3,1.20088]
[1729419254319,0.37717,2651.4,2651.3,0.8237]
[1729419260618,0.80657,2651.4,2651.3,2.60987066]
[1729419260921,0.80657,2651.4,2651.3,2.609872]
[1729419264416,0.80657,2651.4,2651.3,4.08830986]
[1729419264713,0.80657,2651.4,2651.3,2.609872]
[1729419264914,0.80657,2651.4,2651.3,4.08829012]
[1729419265120,0.80657,2651.4,2651.3,2.609872]
[1729419265317,0.80657,2651.4,2651.3,4.08830649]
[1729419265718,0.80657,2651.4,2651.3,4.08812442]
[1729419266523,0.80657,2651.4,2651.3,4.08811699]
[1729419267117,0.80657,2651.4,2651.3,3.26441699]
[1729419267425,1.23047,2651.4,2651.3,3.26441699]
[1729419268422,0.6643441,2651.4,2651.3,3.26441699]
[1729419268824,0.37719,2651.3,2651.2,0.4178]
[1729419269727,0.37719,2651.3,2651.2,0.8115]
[1729419275937,0.37719,2651.3,2651.2,8.13871165]
[1729419280126,0.37719,2651.3,2651.2,6.1650808]
[1729419280627,0.37719,2651.3,2651.2,6.16751433]
[1729419283236,0.37719,2651.3,2651.2,8.6387203]
[1729419285632,0.37719,2651.3,2651.2,8.64311779]
[1729419287329,0.37719,2651.3,2651.2,8.76106131]
[1729419287530,0.37719,2651.3,2651.2,8.87900471]
[1729419288638,0.37719,2651.3,2651.2,8.76106131]
[1729419288838,0.37719,2651.3,2651.2,8.87900331]
[1729419289434,0.37719,2651.3,2651.2,6.40779734]
[1729419290637,0.37719,2651.3,2651.2,6.40975974]
[1729419290832,0.37719,2651.3,2651.2,4.31645641]
[1729419291041,0.37719,2651.3,2651.2,4.08057089]
[1729419291245,0.37719,2651.3,2651.2,4.31645481]
[1729419291536,40.8,2652.5,2651.2,2.83484195]
[1729419291839,0.37715,2651.6,2651.5,1.48133331]
[1729419292047,0.37715,2651.6,2651.5,3.65739138]
[1729419293638,0.37715,2651.6,2651.5,2.17605807]
[1729419294451,0.37715,2651.6,2651.5,3.65681974]
[1729419294638,0.37715,2651.6,2651.5,4.07531974]
[1729419295642,0.37715,2651.6,2651.5,4.07421167]
[1729419295944,0.37714,2651.7,2651.5,4.45137167]
[1729419296145,0.37714,2651.7,2651.6,3.19247477]
[1729419297542,0.37714,2651.7,2651.6,1.40612477]
[1729419297731,0.37714,2651.7,2651.6,3.19182755]
[1729419297935,0.37714,2651.7,2651.6,4.18001387]
[1729419299846,0.37712,2651.8,2651.6,4.18001387]
[1729419300040,0.37712,2651.8,2651.7,3.26547642]
[1729419300440,0.37712,2651.8,2651.7,3.26514829]
[1729419300838,0.37709,2652.0,2651.8,0.37711]
[1729419301043,0.78408,2652.1,2651.9,3.68948156]
[1729419301250,0.78408,2652.1,2652.0,3.26488156]
[1729419301436,0.78408,2652.1,2652.0,3.66528156]
[1729419302254,0.407,2652.1,2652.0,3.66528156]
[1729419302644,0.78407,2652.1,2652.0,3.66528156]
[1729419303349,0.78407,2652.1,2652.0,3.1710774]
[1729419303554,0.78407,2652.1,2652.0,2.18577465]
[1729419303754,0.78407,2652.1,2652.0,2.18364664]
[1729419304252,0.78407,2652.1,2652.0,3.16874941]
[1729419305353,0.78407,2652.1,2652.0,1.38550277]
[1729419305653,0.4279,2652.2,2652.0,3.16810808]
[1729419305847,0.37707,2652.1,2652.0,1.38550277]
[1729419306048,0.37707,2652.1,2652.0,0.4004]
[1729419308351,0.37706,2652.2,2652.0,0.77748]
[1729419309052,0.3978,2652.3,2652.1,0.37707]
[1729419309554,0.77485,2652.3,2652.2,0.4254]
[1729419309755,0.3978,2652.3,2652.2,0.4254]
[1729419309957,0.77485,2652.3,2652.2,0.4254]
[1729419310143,0.8142,2652.6,2652.2,0.4254]
[1729419310346,0.4055,2652.5,2652.2,0.4254]
[1729419310545,0.37704,2652.4,2652.3,0.3901]
[1729419313358,0.4055,2652.5,2652.1,0.98510277]
[1729419313558,0.37706,2652.2,2652.0,5.37069277]
[1729419314057,0.37706,2652.2,2652.0,2.16289277]
[1729419314558,0.37706,2652.2,2652.1,0.98510277]
[1729419316250,0.37706,2652.2,2652.0,1.78580277]
[1729419317762,0.37707,2652.1,2652.0,1.78580277]
[1729419317965,0.4055,2652.5,2652.0,3.56487545]
[1729419318160,0.4055,2652.5,2652.0,1.78580277]
[1729419318368,0.37707,2652.1,2652.0,1.78580277]
[1729419318861,40.8,2652.1,2651.9,4.19290277]
[1729419319058,1.19689,2652.0,2651.9,3.2078]
[1729419322449,0.3771,2651.9,2651.8,1.38060277]